bitfinex-derivatives/quotes_BNBF0:USTF0_20251219
["timestamp","ask_amount","ask_price","bid_price","bid_amount"]
[1766185796308,0.20324254,856.78,855.12,0.87325413]
[1766185798209,0.20324254,856.78,855.13,0.87325413]
[1766185801616,1.7415097,856.67,855.13,0.87325413]
[1766185802316,1.7415097,856.66,855.14,0.87325413]
[1766185802813,1.7415097,856.66,855.13,0.87325413]
[1766185803316,1.7415097,856.66,855.14,0.87325413]
[1766185803812,1.7415097,856.65,855.14,0.87325413]
[1766185804218,1.7415097,856.63,855.12,0.87325413]
[1766185806216,1.7415097,856.62,855.12,0.87325413]
[1766185806415,1.7415097,856.62,855.13,0.87325413]
[1766185806618,0.20332863,856.25,855.13,0.87325413]
[1766185807516,0.20332863,856.25,855.14,0.87325413]
[1766185809520,0.20332863,856.25,855.15,0.87325413]
[1766185810421,0.20332863,856.25,855.16,0.87325413]
[1766185811122,0.20332863,856.25,855.11,0.87325413]
[1766185811318,0.20332863,856.25,855.12,0.87325413]
[1766185812323,0.20332863,856.25,854.51,0.20342193]
[1766185812324,0.20332863,856.25,855.08,0.87325413]
[1766185813319,0.20332863,856.25,855.09,0.87325413]
[1766185814326,0.20332863,856.25,855.1,0.87325413]
[1766185815523,0.20332863,856.25,855.11,0.87325413]
[1766185816125,0.20332863,856.25,855.04,0.87325413]
[1766185816324,0.20332863,856.25,855.06,0.87325413]
[1766185817529,0.20332863,856.25,855.08,0.87325413]
[1766185818327,0.20332863,856.25,855.09,0.87325413]
[1766185820532,0.20332863,856.25,855.08,0.87325413]
[1766185821834,0.20332863,856.25,855.05,0.87325413]
[1766185823336,1.7415097,856.23,854.99,0.87325413]
[1766185824137,1.7415097,856.24,854.98,0.87325413]
[1766185826139,1.7415097,856.24,854.97,0.87325413]
[1766185826540,1.7415097,856.24,854.96,0.87325413]
[1766185827537,1.7415097,856.21,854.93,0.87325413]
[1766185828240,1.7415097,856.22,854.92,0.87325413]
[1766185830341,1.7415097,856.23,854.91,0.87325413]
[1766185832348,1.7415097,856.24,854.9,0.87325413]
[1766185834144,1.94483833,856.25,854.89,6.3975114]
[1766185835647,1.94483833,856.25,854.89,0.87325413]
[1766185836145,1.94483833,856.25,854.88,0.87325413]
[1766185836346,0.20332863,856.25,854.89,0.87325413]
[1766185837147,0.20332863,856.25,854.88,0.87325413]
[1766185839149,0.20332863,856.25,854.87,0.87325413]
[1766185840952,0.20332863,856.25,854.87,0.87366334]
[1766185843146,0.20332863,856.25,854.86,0.87366334]
[1766185843353,0.20332863,856.25,854.87,0.87366334]
[1766185843753,0.20332863,856.25,854.86,0.87366334]
[1766185850458,0.20332863,856.25,854.87,0.87366334]
[1766185854260,0.20332863,856.25,854.88,0.87366334]
[1766185854462,1.7415097,856.24,854.85,0.87366334]
[1766185857560,1.7415097,856.23,854.85,0.87366334]
[1766185858363,1.7415097,856.23,854.86,0.87366334]
[1766185861162,1.7415097,856.14,854.77,0.87366334]
[1766185861367,1.7415097,856.11,854.74,0.87366334]
[1766185863167,1.7415097,856.11,854.75,0.87366334]
[1766185864166,1.7415097,856.1,854.75,0.87366334]
[1766185865069,1.7415097,856.11,854.75,0.87366334]
[1766185865267,1.7415097,856.1,854.75,0.87366334]
[1766185867269,1.7415097,856.1,854.76,0.87366334]
[1766185868166,1.7415097,856.09,854.76,0.87366334]
[1766185869272,1.7415097,856.09,854.77,0.87366334]
[1766185870175,1.7415097,856.08,854.77,0.87366334]
[1766185870969,1.7415097,856.08,854.78,0.87366334]
[1766185871175,1.7415097,856.07,854.78,0.87366334]
[1766185873176,1.7415097,856.07,854.79,0.87366334]
[1766185874071,1.7415097,856.06,854.79,0.87366334]
[1766185875573,1.7415097,856.08,854.81,0.87366334]
[1766185875778,1.7415097,856.1,854.83,0.87366334]
[1766185876274,1.7415097,856.1,854.84,0.87366334]
[1766185876474,1.7415097,856.09,854.83,0.87366334]
[1766185878179,1.7415097,856.08,854.83,0.87366334]
[1766185878380,1.7415097,856.06,854.81,0.87366334]
[1766185879177,1.7415097,856.06,854.82,0.87366334]
[1766185879480,1.7415097,856.04,854.8,0.87366334]
[1766185882285,1.7415097,856.03,854.8,0.87366334]
[1766185882484,1.7415097,856.04,854.8,0.87366334]
[1766185883084,1.7415097,856.03,854.8,0.87366334]
[1766185883283,1.7415097,856.03,854.81,0.87366334]
[1766185886387,1.7415097,856.04,854.81,0.87366334]
[1766185887684,1.7415097,856.08,854.85,0.87366334]
[1766185888290,1.7415097,856.13,854.91,0.87366334]
[1766185893300,1.7415097,856.16,854.95,0.87366334]
[1766185894401,1.7415097,856.18,854.97,0.87366334]
[1766185896999,1.7415097,856.18,854.96,0.87366334]
[1766185904305,1.7415097,856.21,854.99,0.87366334]
[1766185905410,1.7415097,856.23,855.01,0.87366334]
[1766185907411,1.7415097,856.23,854.71,6.02623219]
[1766185907412,0.20332863,856.25,855.08,0.87366334]
[1766185908406,0.20332863,856.25,855.1,0.87366334]
[1766185909011,0.20332863,856.25,855.16,0.87366334]
[1766185909212,0.20332863,856.25,855.22,0.87366334]
[1766185909709,0.20332863,856.25,855.23,0.87366334]
[1766185910210,0.20332863,856.25,855.21,0.87366334]
[1766185910413,0.20332863,856.25,855.24,0.87366334]
[1766185911113,0.20332863,856.25,855.22,0.87366334]
[1766185912016,0.20332863,856.25,855.27,0.87366334]
[1766185912314,0.20332863,856.25,855.35,0.87366334]
[1766185912514,1.7415097,856.72,855.35,0.87366334]
[1766185912814,4.0663605,857.53,855.4,0.87366334]
[1766185912815,0.20326984,856.36,855.4,0.87366334]
[1766185913010,0.20326984,856.36,855.44,0.87366334]
[1766185913211,1.7415097,856.84,855.41,0.87366334]
[1766185913414,2.90454321,857.38,854.71,6.02623219]
[1766185913415,0.20324788,856.46,855.49,0.87366334]
[1766185914218,0.20324788,856.46,855.45,0.87366334]
[1766185914613,0.20324788,856.46,855.46,0.87366334]
[1766185915113,0.20324788,856.46,855.47,0.87366334]
[1766185916219,0.20324788,856.46,855.44,0.87366334]
[1766185916517,0.20324788,856.46,855.43,0.87366334]
[1766185917116,0.20324788,856.46,855.41,0.87366334]
[1766185918215,0.20324788,856.46,855.38,0.87366334]
[1766185918820,0.20324788,856.46,855.23,1.16464292]
[1766185919020,0.20324788,856.46,855.38,0.8694733]
[1766185919320,0.20324788,856.46,854.73,48.61532388]
[1766185919321,0.20324788,856.46,855.36,0.8694733]
[1766185920620,0.20324788,856.46,855.34,6.08802001]
[1766185933629,0.20324788,856.46,854.96,0.8694733]
[1766185933830,0.20324788,856.46,854.95,0.8694733]
[1766185934426,0.20324788,856.46,854.96,0.8694733]
[1766185937325,0.20324788,856.46,854.81,1.16464292]
[1766185937326,0.20324788,856.46,854.97,0.8694733]
[1766185940334,0.20324788,856.46,854.98,0.86901801]
[1766185940533,0.20324788,856.46,854.97,0.86901801]
[1766185940735,0.20324788,856.46,855.03,0.86901801]
[1766185942336,0.20324788,856.46,855.04,0.86901801]
[1766185944134,0.20324788,856.46,855.05,0.86901801]
[1766185945833,0.20324788,856.46,854.99,0.86901801]
[1766185946132,0.20324788,856.46,855.0,0.86901801]
[1766185947238,0.20324788,856.46,855.01,0.86901801]
[1766185948335,0.20324788,856.46,855.02,0.86901801]
[1766185950140,0.20324788,856.46,855.03,0.86901801]
[1766185951338,0.20324788,856.46,855.04,0.86901801]
[1766185953237,0.20324788,856.46,855.05,0.86901801]
[1766185954139,0.20324788,856.46,855.06,0.86901801]
[1766185956147,0.20324788,856.46,855.07,0.86901801]
[1766185957246,0.20324788,856.46,855.08,0.86901801]
[1766185958347,0.20324788,856.46,855.09,0.86901801]
[1766185960144,0.20324788,856.46,855.1,0.86901801]
[1766185961149,0.20324788,856.46,855.11,0.86901801]
[1766185962148,0.20324788,856.46,855.12,0.86901801]
[1766185963151,0.20324788,856.46,855.13,0.86901801]
[1766185964149,0.20324788,856.46,855.14,0.86901801]
[1766185965256,0.20324788,856.46,855.15,0.86901801]
[1766185966157,0.20324788,856.46,855.16,0.86901801]
[1766185966352,0.20324788,856.46,855.15,0.86901801]
[1766185967057,0.20324788,856.46,855.16,0.86901801]
[1766185968255,0.20324788,856.46,855.17,0.86901801]
[1766185970257,0.20324788,856.46,855.22,0.86901801]
[1766185971461,0.20324788,856.46,855.24,0.86901801]
[1766185974266,0.20324788,856.46,855.25,0.86901801]
[1766185975060,0.20324788,856.46,855.26,0.86901801]
[1766185976066,0.20324788,856.46,855.27,0.86901801]
[1766185977165,0.20324788,856.46,855.29,0.86901801]
[1766185978066,0.20324788,856.46,855.3,0.86901801]
[1766185979163,0.20324788,856.46,855.32,0.86901801]
[1766185981268,0.20324788,856.46,855.33,0.86901801]
[1766185983265,0.20324788,856.46,855.34,0.86901801]
[1766185985370,0.20324788,856.46,855.35,0.86901801]
[1766185987370,0.20324788,856.46,855.36,0.86901801]
[1766185989272,0.20324788,856.46,855.38,0.86901801]
[1766185996375,0.20324788,856.46,855.37,0.86901801]
[1766186005780,1.7415097,856.4,855.29,0.86901801]
[1766186006181,1.7415097,856.35,855.24,0.86901801]
[1766186006486,1.7415097,856.33,855.21,0.86901801]
[1766186006982,1.7415097,856.3,855.18,0.86901801]
[1766186007480,1.7415097,856.31,855.18,0.86901801]
[1766186008187,1.7415097,856.27,855.13,0.86901801]
[1766186008483,1.7415097,856.25,855.09,0.86901801]
[1766186008681,1.7415097,856.25,855.1,0.86901801]
[1766186009182,1.7415097,856.25,855.09,0.86901801]
[1766186009486,1.7415097,856.26,855.08,0.86901801]
[1766186010284,1.7415097,856.27,855.07,0.86901801]
[1766186011283,1.7415097,856.28,855.07,0.86901801]
[1766186012390,1.7415097,856.29,855.06,0.86901801]
[1766186013586,1.7415097,856.29,855.05,0.86901801]
[1766186014389,1.7415097,856.3,855.04,0.86901801]
[1766186015285,1.7415097,856.31,855.04,0.86901801]
[1766186016390,1.7415097,856.31,855.03,0.86901801]
[1766186017486,1.7415097,856.32,855.03,0.86901801]
[1766186018286,1.7415097,856.32,855.02,0.86901801]
[1766186018891,1.7415097,856.32,854.87,1.16464292]
[1766186019092,1.7415097,856.32,855.02,0.87462828]
[1766186019392,1.7415097,856.33,855.02,0.87462828]
[1766186020286,1.7415097,856.33,854.86,1.16464292]
[1766186020287,1.7415097,856.33,855.01,0.87462828]
[1766186022390,1.7415097,856.34,855.01,0.87462828]
[1766186023393,1.7415097,856.34,855.0,0.87462828]
[1766186025391,1.7415097,856.35,855.0,0.87462828]
[1766186027291,1.7415097,856.36,855.0,0.87462828]
[1766186028299,1.7415097,856.36,854.99,0.87462828]
[1766186032306,1.7415097,856.36,854.98,0.87462828]
[1766186033706,1.7415097,856.34,854.96,0.87462828]
[1766186043816,1.7415097,856.41,855.03,0.87462828]
[1766186045218,1.7415097,856.41,855.04,0.87462828]
[1766186046319,1.7415097,856.4,855.04,0.87462828]
[1766186048920,1.7415097,856.4,855.04,0.8740277]
[1766186049316,1.7415097,856.39,855.05,0.8740277]
[1766186051421,1.7415097,856.39,855.06,0.8740277]
[1766186052225,1.7415097,856.38,855.06,0.8740277]
[1766186052620,1.7415097,856.41,855.09,0.8740277]
[1766186053523,1.7415097,856.4,855.09,0.8740277]
[1766186054323,1.7415097,856.4,855.1,0.8740277]
[1766186056227,1.7415097,856.39,855.1,0.8740277]
[1766186056421,1.7415097,856.39,855.11,0.8740277]
[1766186056626,1.7415097,856.38,855.1,0.8740277]
[1766186057427,1.7415097,856.37,855.1,0.8740277]
[1766186058524,1.7415097,856.37,855.11,0.8740277]
[1766186059432,1.7415097,856.36,855.11,0.8740277]
[1766186060229,1.7415097,856.36,855.12,0.8740277]
[1766186060430,1.7415097,856.35,855.12,0.8740277]
[1766186060629,1.7415097,856.36,855.13,0.8740277]
[1766186061329,1.7415097,856.35,855.13,0.8740277]
[1766186062331,1.7415097,856.34,855.14,0.8740277]
[1766186063332,0.20324788,856.46,855.15,0.8740277]
[1766186063333,1.7415097,856.33,855.15,0.8740277]
[1766186064331,1.7415097,856.33,854.74,0.20327162]
[1766186064332,1.7415097,856.32,855.16,0.8740277]
[1766186065334,1.7415097,856.3,855.18,0.8740277]
[1766186066236,1.7415097,856.28,855.16,0.8740277]
[1766186066430,1.7415097,856.23,855.11,0.8740277]
[1766186066635,1.7415097,856.24,855.12,0.8740277]
[1766186077042,1.7415097,856.2,855.08,0.8740277]
[1766186078041,1.7415097,856.16,855.04,0.8740277]
[1766186078240,1.7415097,856.16,855.03,0.8740277]
[1766186078439,1.7415097,856.07,854.95,0.8740277]
[1766186079237,1.7415097,856.08,854.95,0.8740277]
[1766186079441,1.7415097,856.08,854.94,0.8740277]
[1766186080244,1.7415097,856.09,854.93,0.8740277]
[1766186081345,1.7415097,856.1,854.92,0.8740277]
[1766186082345,1.7415097,856.11,854.91,0.8740277]
[1766186083546,1.7415097,856.05,854.85,0.8740277]
[1766186084242,1.7415097,856.06,854.84,0.8740277]
[1766186085244,1.7415097,856.07,854.83,0.8740277]
[1766186086248,1.7415097,856.07,854.68,1.16464292]
[1766186086249,1.7415097,856.08,854.82,0.8740277]
[1766186086442,1.7415097,856.08,854.83,0.8740277]
[1766186087245,1.7415097,856.09,854.82,0.8740277]
[1766186088249,1.7415097,856.1,854.81,0.8740277]
[1766186089749,0.20324788,856.46,854.84,0.8740277]
[1766186089750,1.7415097,856.13,854.84,0.8740277]
[1766186090545,1.7415097,856.14,854.83,0.8740277]
[1766186090851,1.7415097,856.13,854.83,0.8740277]
[1766186091350,1.7415097,856.16,854.85,0.8740277]
[1766186092347,1.7415097,856.17,854.85,0.8740277]
[1766186095253,1.7415097,856.17,854.84,0.8740277]
[1766186097254,0.20324788,856.46,854.84,0.8740277]
[1766186097255,1.7415097,856.18,854.84,0.8740277]
[1766186101456,1.7415097,856.18,854.83,0.8740277]
[1766186106462,1.7415097,856.18,854.82,0.8740277]
[1766186110263,1.7415097,856.18,854.83,0.8740277]
[1766186111464,1.7415097,856.17,854.83,0.8740277]
[1766186113766,0.20340112,855.84,854.83,0.8740277]
[1766186116262,0.20340112,855.84,854.84,0.8740277]
[1766186116466,0.20340112,855.84,854.85,0.8740277]
[1766186120265,0.20340112,855.84,854.86,0.8740277]
[1766186122271,0.20340112,855.84,854.87,0.8740277]
[1766186124072,0.20340112,855.84,854.85,0.8740277]
[1766186124274,0.20340112,855.84,854.81,0.8740277]
[1766186125273,0.20340112,855.84,854.82,0.8740277]
[1766186127277,0.20340112,855.84,854.83,0.8740277]
[1766186130275,0.20340112,855.84,854.84,0.8740277]
[1766186132281,0.20340112,855.84,854.85,0.8740277]
[1766186134285,0.20340112,855.84,854.86,0.8740277]
[1766186135281,0.20340112,855.84,854.87,0.8740277]
[1766186136181,0.20340112,855.84,854.88,0.8740277]
[1766186138285,0.20340112,855.84,854.89,0.8740277]
[1766186141285,0.20340112,855.84,854.88,0.8740277]
[1766186142184,0.20340112,855.84,854.86,0.8740277]
[1766186142485,0.20340112,855.84,854.85,0.8740277]
[1766186143188,0.20340112,855.84,854.82,0.8740277]
[1766186143485,0.20340112,855.84,854.79,0.8740277]
[1766186144486,0.20340112,855.84,854.78,0.8740277]
[1766186146289,0.20340112,855.84,854.77,0.8740277]
[1766186148386,0.20340112,855.84,854.76,0.8740277]
[1766186151390,0.20340112,855.84,854.75,0.8740277]
[1766186162899,0.20340112,855.84,854.86,0.8740277]
[1766186166309,0.20340112,855.84,854.87,0.8740277]
[1766186166608,0.20340112,855.84,854.86,0.8740277]
[1766186168214,0.20340112,855.84,854.87,0.8740277]
[1766186175330,0.20340112,855.84,854.88,0.8740277]
[1766186181239,0.20340112,855.84,854.89,0.8740277]
[1766186183441,0.20340112,855.84,854.92,0.8740277]
[1766186189248,0.20340112,855.84,854.91,0.8740277]
[1766186194752,0.20340112,855.84,855.01,0.8740277]
[1766186195251,0.20340112,855.84,855.0,0.8740277]
[1766186196550,0.20340112,855.84,854.99,0.8740277]
[1766186197156,0.20340112,855.84,854.98,0.8740277]
[1766186199456,0.20340112,855.84,855.02,0.8740277]
[1766186200155,0.20340112,855.84,855.01,0.8740277]
[1766186201354,0.20340112,855.84,855.0,0.8740277]
[1766186204156,0.20340112,855.84,854.99,0.8740277]
[1766186206560,0.20340112,855.84,855.0,0.8740277]
[1766186209160,0.20340112,855.84,854.99,0.8740277]
[1766186210760,0.20340112,855.84,855.0,0.8740277]
[1766186217371,0.20340112,855.84,854.99,0.8740277]
[1766186221169,0.20340112,855.84,855.0,0.8740277]
[1766186224276,0.20340112,855.84,855.01,0.8740277]
[1766186233383,0.20340112,855.84,855.02,0.8740277]
[1766186238182,0.20340112,855.84,855.03,0.8740277]
[1766186241189,0.20340112,855.84,855.04,0.8740277]
[1766186243188,0.20340112,855.84,855.05,0.8740277]
[1766186246294,0.20340112,855.84,855.06,0.8740277]
[1766186249298,0.20340112,855.84,855.07,0.8740277]
[1766186251100,0.20340112,855.84,854.92,1.16464292]
[1766186251101,0.20340112,855.84,855.08,0.8740277]
[1766186252405,0.20340112,855.84,855.09,0.8740277]
[1766186253000,0.20340112,855.84,855.08,0.8740277]
[1766186253200,0.20340112,855.84,855.09,0.8740277]
[1766186254100,0.20340112,855.84,855.1,0.8740277]
[1766186254402,0.20340112,855.84,855.11,0.8740277]
[1766186254601,1.7415097,856.28,855.24,0.8740277]
[1766186254800,0.20335774,856.02,855.24,0.8740277]
[1766186255299,0.20335774,856.02,855.22,0.8740277]
[1766186257304,0.20335774,856.02,855.21,0.8740277]
[1766186258305,0.20335774,856.02,855.2,0.8740277]
[1766186260307,0.20335774,856.02,855.19,0.8740277]
[1766186263403,0.20335774,856.02,855.18,0.8740277]
[1766186266304,0.20335774,856.02,855.17,0.8740277]
[1766186272207,0.20335774,856.02,855.16,0.8740277]
[1766186279520,0.20335774,856.02,855.15,0.8740277]
[1766186290930,0.20335774,856.02,855.15,0.8740277]
[1766186291326,0.20335774,856.02,855.16,0.8740277]
[1766186298233,0.20335774,856.02,855.17,0.8740277]
[1766186304341,0.20335774,856.02,855.18,0.8740277]
[1766186307340,0.20335774,856.02,855.19,0.8740277]
[1766186309438,0.20335774,856.02,855.2,0.8740277]
[1766186311344,0.20335774,856.02,855.21,0.8740277]
[1766186312338,0.20335774,856.02,855.22,0.8740277]
[1766186313344,0.20335774,856.02,855.23,0.8740277]
[1766186314542,0.20335774,856.02,855.25,0.8740277]
[1766186336660,0.20335774,856.02,855.24,0.8740277]
[1766186343368,0.20335774,856.02,855.2,0.8740277]
[1766186345169,0.20335774,856.02,855.19,0.8740277]
[1766186346568,0.20335774,856.02,855.2,0.8740277]
[1766186349175,0.20335774,856.02,855.19,0.8740277]
[1766186350672,0.20335774,856.02,855.2,0.8740277]
[1766186350876,0.20335774,856.02,855.31,0.8740277]
[1766186352177,0.20335774,856.02,855.3,0.8740277]
[1766186352379,0.20335774,856.02,855.31,0.8740277]
[1766186354074,0.20335774,856.02,855.3,0.8740277]
[1766186354278,0.20335774,856.02,855.41,0.8740277]
[1766186355075,0.20335774,856.02,854.96,6.56770227]
[1766186355076,0.20335774,856.02,855.4,0.8740277]
[1766186355277,1.7415097,856.51,855.4,0.8740277]
[1766186355474,0.2033019,856.09,855.4,0.8740277]
[1766186355675,1.7415097,856.51,855.4,0.8740277]
[1766186355878,0.2033019,856.09,855.4,0.8740277]
[1766186356079,1.7415097,856.51,855.4,0.8740277]
[1766186356280,1.7415097,856.52,855.38,0.8740277]
[1766186357080,1.7415097,856.53,855.38,0.8740277]
[1766186357281,0.20330131,856.24,855.37,0.8740277]
[1766186359177,0.20330131,856.24,855.36,0.8740277]
[1766186360178,0.20330131,856.24,855.35,0.8740277]
[1766186360977,0.20330131,856.24,855.36,0.8740277]
[1766186361181,0.20330131,856.24,855.35,0.8740277]
[1766186363178,0.20330131,856.24,855.34,0.8740277]
[1766186365183,0.20330131,856.24,855.33,0.8740277]
[1766186366684,0.20330131,856.24,855.32,0.8740277]
[1766186368285,0.20330131,856.24,855.31,0.8740277]
[1766186372588,0.20330131,856.24,855.34,0.8740277]
[1766186373190,0.20330131,856.24,855.33,0.8740277]
[1766186373694,0.20330131,856.24,855.37,0.8740277]
[1766186374095,0.20330131,856.24,855.36,0.8740277]
[1766186376291,0.20330131,856.24,855.35,0.8740277]
[1766186379095,0.20330131,856.24,855.34,0.8740277]
[1766186380502,0.20330131,856.24,855.42,0.8740277]
[1766186382099,0.20330131,856.24,855.41,0.8740277]
[1766186384098,0.20330131,856.24,855.4,0.8740277]
[1766186386598,0.20330131,856.24,855.41,0.8740277]
[1766186387297,0.20330131,856.24,855.4,0.8740277]
[1766186397313,0.20330131,856.24,855.37,0.8740277]
[1766186401412,0.20330131,856.24,855.38,0.8740277]
[1766186404319,0.20330131,856.24,855.39,0.8740277]
[1766186404516,0.20330131,856.24,855.35,0.8740277]
[1766186404719,0.20330131,856.24,855.29,0.8740277]
[1766186405219,0.20330131,856.24,855.3,0.8740277]
[1766186407118,0.20330131,856.24,855.31,0.8740277]
[1766186408114,0.20330131,856.24,855.32,0.8740277]
[1766186409117,0.20330131,856.24,855.34,0.8740277]
[1766186410125,0.20330131,856.24,855.35,0.8740277]
[1766186412126,0.20330131,856.24,855.36,0.8740277]
[1766186414127,0.20330131,856.24,855.37,0.8740277]
[1766186416228,0.20330131,856.24,855.32,0.8740277]
[1766186416428,0.20330131,856.24,855.29,0.8740277]
[1766186417329,0.20330131,856.24,855.27,6.62740974]
[1766186448348,0.20330131,856.24,855.03,0.8740277]
[1766186451149,0.20330131,856.24,855.04,0.8740277]
[1766186451551,0.20330131,856.24,855.04,7.54121225]
[1766186451845,0.20330131,856.24,855.04,0.8740277]
[1766186453252,0.20330131,856.24,855.05,0.8740277]
[1766186453446,0.20330131,856.24,855.16,0.8740277]
[1766186455352,0.20330131,856.24,855.17,0.8740277]
[1766186456454,0.20330131,856.24,855.18,0.8740277]
[1766186457154,0.20330131,856.24,855.19,0.8740277]
[1766186459155,0.20330131,856.24,855.2,0.8740277]
[1766186460155,0.20330131,856.24,855.23,0.8740277]
[1766186462154,0.20330131,856.24,855.24,0.8740277]
[1766186463457,0.20330131,856.24,855.25,0.8740277]
[1766186464358,0.20330131,856.24,855.26,0.8740277]
[1766186464960,0.20330131,856.24,855.31,0.8740277]
[1766186465559,0.20330131,856.24,855.32,0.8740277]
[1766186465859,0.20330131,856.24,855.11,6.75642654]
[1766186465860,0.20330131,856.24,855.4,0.8740277]
[1766186466358,0.20330131,856.24,855.43,0.8740277]
[1766186466761,0.20330131,856.24,855.42,0.8740277]
[1766186467463,0.20330131,856.24,855.41,0.8740277]
[1766186468262,0.20330131,856.24,855.4,0.8740277]
[1766186471364,0.20330131,856.24,855.39,0.8740277]
[1766186472065,0.20330131,856.24,855.24,1.16464292]
[1766186472265,0.20330131,856.24,855.39,0.8740172]
[1766186473364,0.20330131,856.24,855.38,0.8740172]
[1766186476471,0.20330131,856.24,855.37,0.8740172]
[1766186476771,0.20330131,856.24,855.38,0.8740172]
[1766186477270,0.20330131,856.24,855.37,0.8740172]
[1766186479571,0.20330131,856.24,855.36,0.8740172]
[1766186482372,0.20330131,856.24,855.35,0.8740172]
[1766186483968,0.20330131,856.24,855.31,0.8740172]
[1766186484170,0.20330131,856.24,855.39,0.8740172]
[1766186484373,0.20330131,856.24,855.44,0.8740172]
[1766186486472,0.20330131,856.24,855.43,0.8740172]
[1766186488074,0.20330131,856.24,855.43,0.87251294]
[1766186489275,0.20330131,856.24,855.42,0.87251294]
[1766186490075,0.20324372,856.38,855.42,0.87251294]
[1766186491271,0.20324372,856.38,855.45,0.87251294]
[1766186491576,1.7415097,856.99,855.51,0.87251294]
[1766186491772,0.20323363,856.43,855.51,0.87251294]
[1766186491973,1.7415097,856.99,855.51,0.87251294]
[1766186492175,0.20322651,856.43,855.51,0.87251294]
[1766186492476,1.7415097,856.99,855.5,0.87251294]
[1766186493678,0.20323304,856.62,855.5,0.87251294]
[1766186494275,0.20323304,856.62,855.46,0.87251294]
[1766186497988,0.20323304,856.62,855.45,0.87251294]
[1766186498484,0.20323304,856.62,855.46,0.87251294]
[1766186499088,0.20323304,856.62,855.51,0.87251294]
[1766186499489,0.20323304,856.62,855.5,0.87251294]
[1766186500587,0.20323304,856.62,855.54,0.87251294]
[1766186500884,0.20323304,856.62,855.55,0.87251294]
[1766186501286,0.20323304,856.62,855.63,0.87251294]
[1766186502288,0.20323304,856.62,855.62,0.87251294]
[1766186504288,0.20323304,856.62,855.61,0.87251294]
[1766186504491,0.20323304,856.62,855.62,0.87251294]
[1766186505292,0.20323304,856.62,855.61,0.87251294]
[1766186510500,0.20323304,856.62,855.62,0.87251294]
[1766186512501,0.20323304,856.62,855.63,0.87251294]
[1766186514704,0.20323304,856.62,855.57,0.87251294]
[1766186514906,0.20323304,856.62,855.54,0.87251294]
[1766186515405,0.20323304,856.62,855.48,0.87251294]
[1766186516508,0.20323304,856.62,855.49,0.87251294]
[1766186516705,0.20323304,856.62,855.49,7.64083707]
[1766186517004,0.20323304,856.62,855.48,0.87251294]
[1766186517209,0.20323304,856.62,855.49,0.87251294]
[1766186518308,0.20323304,856.62,855.46,0.87251294]
[1766186518509,0.20323304,856.62,855.47,0.87251294]
[1766186519508,0.20323304,856.62,855.48,0.87251294]
[1766186521610,0.20323304,856.62,855.49,0.87251294]
[1766186522108,0.20323304,856.62,855.48,0.87251294]
[1766186522407,0.20323304,856.62,855.42,0.87251294]
[1766186523312,0.20323304,856.62,855.43,0.87251294]
[1766186523809,0.20323304,856.62,855.41,0.87251294]
[1766186524412,0.20323304,856.62,855.42,0.87251294]
[1766186527310,0.20323304,856.62,855.43,0.87251294]
[1766186534316,0.20323304,856.62,855.44,0.87251294]
[1766186540425,0.20323304,856.62,855.45,0.87251294]
[1766186541024,0.20323304,856.62,855.44,0.87251294]
[1766186543227,0.20323304,856.62,855.45,0.87251294]
[1766186544530,0.20323304,856.62,855.47,0.87251294]
[1766186547231,0.20323304,856.62,855.46,0.87251294]
[1766186556339,0.20323304,856.62,855.45,0.87251294]
[1766186557541,0.20323304,856.62,855.32,0.87251294]
[1766186558336,0.20323304,856.62,855.31,0.87251294]
[1766186561337,0.20323304,856.62,855.3,0.87251294]
[1766186562440,0.20323304,856.62,855.31,0.87251294]
[1766186565439,0.20323304,856.62,855.32,0.87251294]
[1766186568243,0.20323304,856.62,855.33,0.87251294]
[1766186570342,0.20323304,856.62,855.34,0.87251294]
[1766186571348,0.20323304,856.62,855.35,0.87251294]
[1766186573347,1.94474274,856.62,855.36,0.87251294]
[1766186574251,1.7415097,856.61,855.38,0.87251294]
[1766186575248,1.7415097,856.6,855.38,0.87251294]
[1766186576154,0.20323304,856.62,855.39,0.87251294]
[1766186576155,1.7415097,856.61,855.39,0.87251294]
[1766186576455,1.7415097,856.61,855.4,0.87251294]
[1766186579258,1.7415097,856.6,855.4,0.87251294]
[1766186581255,1.7415097,856.61,855.4,0.87251294]
[1766186581558,1.7415097,856.6,855.41,0.87251294]
[1766186588261,1.7415097,856.6,855.4,0.87251294]
[1766186589464,1.7415097,856.6,855.41,0.87251294]
[1766186590360,1.7415097,856.6,855.4,0.87251294]
[1766186590565,1.7415097,856.6,855.41,0.87251294]
[1766186591261,0.20323304,856.62,855.43,0.87251294]
[1766186591467,0.20323304,856.62,855.49,0.87251294]
[1766186593564,0.20323304,856.62,855.5,0.87251294]
[1766186594263,0.20323304,856.62,855.52,0.87251294]
[1766186605770,0.20323304,856.62,855.52,0.87520368]
[1766186606375,0.20323304,856.62,855.53,0.87520368]
[1766186606671,0.20323304,856.62,855.52,0.87520368]
[1766186616685,0.20323304,856.62,855.53,0.87520368]
[1766186631194,0.20323304,856.62,855.54,0.87520368]
[1766186634497,0.20323304,856.62,855.55,0.87520368]
[1766186636501,0.20323304,856.62,855.62,0.87520368]
[1766186636703,0.20323304,856.62,855.71,0.87520368]
[1766186637398,0.20323304,856.62,855.7,0.87520368]